bitfinex/quotes_SOLUSD_20250414
["timestamp","ask_amount","ask_price","bid_price","bid_amount"]
[1744646291458,46.55503236,128.75,128.7,46.55503236]
[1744646291665,46.55503236,128.76,128.71,46.55503236]
[1744646292458,18.79181043,128.78,128.68,7.7712]
[1744646292676,18.79181043,128.78,128.67,18.79181043]
[1744646292677,46.55503236,128.72,128.69,29.89]
[1744646292867,46.55503236,128.7,128.69,29.953]
[1744646293076,0.14216157,128.71,128.69,29.953]
[1744646293455,46.69719393,128.71,128.69,29.953]
[1744646293763,46.55503236,128.7,128.69,0.063]
[1744646293971,46.69719393,128.71,128.69,0.063]
[1744646294166,54.46599393,128.72,128.69,0.063]
[1744646294757,0.14216157,128.73,128.69,46.61803236]
[1744646295069,137.36489393,128.74,128.69,46.61803236]
[1744646295382,46.55503236,128.71,128.69,0.063]
[1744646295587,46.55503236,128.7,128.69,0.063]
[1744646295765,19.07613357,128.73,128.69,0.063]
[1744646295964,46.55503236,128.7,128.69,0.063]
[1744646296886,54.32503236,128.71,128.69,0.063]
[1744646297082,46.55503236,128.7,128.69,0.063]
[1744646297557,46.69719393,128.7,128.69,0.063]
[1744646297759,65.34684279,128.7,128.69,0.063]
[1744646298170,0.14216157,128.73,128.69,46.61803236]
[1744646298362,46.69719393,128.73,128.69,0.063]
[1744646298562,46.69719393,128.73,128.69,46.61803236]
[1744646298978,54.46549393,128.73,128.69,46.61803236]
[1744646299290,7.7683,128.73,128.69,30.94997825]
[1744646299466,121.69693982,128.74,128.69,30.94997825]
[1744646300993,113.92913982,128.73,128.69,0.063]
[1744646301185,46.85748879,128.72,128.69,0.063]
[1744646301771,129.75748879,128.73,128.69,0.063]
[1744646302171,82.9,128.73,128.69,46.92048879]
[1744646302772,101.69181043,128.72,128.69,0.063]
[1744646303081,120.84543429,128.7,128.69,0.063]
[1744646303281,19.07613357,128.67,128.66,0.063]
[1744646303480,65.93362236,128.67,128.66,0.063]
[1744646303877,89.4679455,128.67,128.66,0.063]
[1744646305175,97.2397455,128.67,128.66,0.063]
[1744646306010,44.79181043,128.65,128.64,0.063]
[1744646306300,102.48929922,128.65,128.63,29.026]
[1744646306479,65.50713765,128.64,128.63,29.026]
[1744646307204,7.91636157,128.63,128.62,0.063]
[1744646307507,54.77385036,128.63,128.62,0.063]
[1744646307798,54.63138879,128.64,128.62,0.063]
[1744646308299,82.9,128.64,128.62,0.063]
[1744646308988,0.14216157,128.68,128.63,46.85748879]
[1744646309299,26.56241043,128.69,128.63,46.85748879]
[1744646309599,46.85748879,128.68,128.63,54.63148879]
[1744646309798,46.99965036,128.69,128.64,46.85748879]
[1744646309967,137.52768879,128.7,128.65,46.85748879]
[1744646310283,46.85748879,128.69,128.65,46.85748879]
[1744646310686,137.52768879,128.7,128.65,46.85748879]
[1744646310882,137.52768879,128.7,128.66,46.85748879]
[1744646311190,90.6702,128.7,128.66,54.62978879]
[1744646311396,137.52768879,128.7,128.63,7.91636157]
[1744646311571,137.52768879,128.7,128.65,46.85748879]
[1744646312099,129.75748879,128.7,128.66,46.85748879]
[1744646312480,137.52748879,128.7,128.66,46.85748879]
[1744646312705,137.52748879,128.7,128.65,46.85748879]
[1744646313002,137.52748879,128.7,128.66,46.85748879]
[1744646313194,137.52748879,128.7,128.66,54.62988879]
[1744646313686,137.52748879,128.7,128.65,54.63028879]
[1744646313880,129.75748879,128.7,128.66,46.85748879]
[1744646314081,90.67,128.7,128.66,46.85748879]
[1744646314280,137.52748879,128.7,128.66,46.85748879]
[1744646314481,46.85748879,128.69,128.65,54.63028879]
[1744646314899,0.14216157,128.72,128.67,46.85748879]
[1744646315200,18.64964886,128.73,128.68,46.85748879]
[1744646315201,54.62588879,128.73,128.68,46.85748879]
[1744646315406,325.22216157,128.74,128.7,46.85748879]
[1744646315576,46.85748879,128.73,128.68,7.7711]
[1744646315783,46.85748879,128.71,128.66,33.7724]
[1744646316185,90.80996157,128.74,128.67,46.85748879]
[1744646316502,90.80996157,128.74,128.66,33.7724]
[1744646316503,137.66745036,128.74,128.69,46.85748879]
[1744646316807,7.90886157,128.76,128.71,46.85748879]
[1744646317102,82.9,128.75,128.72,46.85748879]
[1744646317306,82.9,128.75,128.72,54.62608879]
[1744646317982,82.9,128.75,128.72,46.85748879]
[1744646318185,46.85748879,128.74,128.7,46.85748879]
[1744646318402,82.9,128.75,128.71,46.85748879]
[1744646319121,46.85748879,128.73,128.68,46.85748879]
[1744646319292,82.9,128.72,128.69,7.7706]
[1744646319480,82.93,128.76,128.71,46.85748879]
[1744646319677,0.03,128.76,128.75,46.85748879]
[1744646321187,0.03,128.76,128.74,30.8571835]
[1744646321685,0.03,128.76,128.75,30.8571835]
[1744646322607,0.03,128.76,128.74,30.8571835]
[1744646323182,0.03,128.76,128.74,38.6241835]
[1744646323887,0.03,128.76,128.75,30.8571835]
[1744646324391,0.03,128.76,128.75,31.14150664]
[1744646324587,82.9,128.82,128.75,81.07482371]
[1744646324896,30.8571835,128.82,128.77,30.8571835]
[1744646325089,30.8571835,128.81,128.76,30.8571835]
[1744646325288,10.8,128.84,128.78,30.8571835]
[1744646325487,30.8571835,128.83,128.78,30.8571835]
[1744646325686,7.7623,128.83,128.76,7.766]
[1744646326019,30.8571835,128.82,128.77,30.8571835]
[1744646326215,0.14216157,128.81,128.76,30.8571835]
[1744646326403,30.8571835,128.79,128.74,30.8571835]
[1744646326916,113.7571835,128.81,128.76,30.8571835]
[1744646327092,82.9,128.81,128.77,30.8571835]
[1744646327296,82.9,128.81,128.75,0.28432314]
[1744646327297,82.9,128.81,128.78,30.8571835]
[1744646327713,82.9,128.81,128.77,30.8571835]
[1744646328391,30.8571835,128.8,128.75,31.14150664]
[1744646328588,121.5206835,128.81,128.76,30.8571835]
[1744646329410,30.8571835,128.81,128.76,30.8571835]
[1744646329591,38.6201835,128.82,128.77,30.8571835]
[1744646330097,7.763,128.82,128.77,38.6228835]
[1744646330414,10.8,128.84,128.8,30.8571835]
[1744646330611,30.8571835,128.85,128.8,30.8571835]
[1744646330808,7.7611,128.85,128.81,30.8571835]
[1744646331296,38.6182835,128.85,128.8,30.8571835]
[1744646331485,30.8571835,128.83,128.79,30.8571835]
[1744646331692,7.7627,128.82,128.78,30.8571835]
[1744646332198,38.6198835,128.82,128.77,30.8571835]
[1744646332394,7.7627,128.82,128.78,30.8571835]
[1744646332792,38.6195835,128.83,128.78,30.8571835]
[1744646333113,38.6195835,128.83,128.79,30.8571835]
[1744646333791,7.7624,128.83,128.79,30.8571835]
[1744646334209,7.7624,128.83,128.77,0.28432314]
[1744646334416,30.8571835,128.84,128.79,30.8571835]
[1744646334915,30.8571835,128.83,128.78,30.8571835]
[1744646335293,30.8571835,128.8,128.72,1.6094]
[1744646335511,30.8571835,128.81,128.76,30.8571835]
[1744646335813,7.7627,128.82,128.79,30.8571835]
[1744646336011,7.7624,128.83,128.79,30.8571835]
[1744646336518,30.8571835,128.86,128.78,0.14216157]
[1744646336694,7.79,128.87,128.82,30.8571835]
[1744646336892,7.79,128.87,128.83,30.8571835]
[1744646337094,30.8571835,128.86,128.8,26.0]
[1744646337293,7.7615,128.84,128.8,56.8571835]
[1744646337502,19.4293,128.87,128.81,30.8571835]
[1744646337819,7.7603,128.86,128.82,30.8571835]
[1744646338016,38.6174835,128.86,128.81,30.8571835]
[1744646338322,7.7603,128.86,128.82,30.8571835]
[1744646338524,38.6470835,128.87,128.83,30.8571835]
[1744646338713,7.7899,128.87,128.83,30.8571835]
[1744646339014,30.8571835,128.86,128.81,0.28432314]
[1744646339196,30.8571835,128.85,128.81,30.8571835]
[1744646339391,30.8571835,128.86,128.81,30.8571835]
[1744646339589,7.7609,128.85,128.81,30.8571835]
[1744646340008,0.03,128.87,128.84,30.8571835]
[1744646340411,7.7898,128.87,128.82,0.28432314]
[1744646340609,7.7898,128.87,128.83,30.8571835]
[1744646340814,0.03,128.87,128.84,30.8571835]
[1744646341018,0.03,128.87,128.82,0.71080785]
[1744646341191,0.03,128.87,128.86,30.8571835]
[1744646341391,0.03,128.87,128.85,30.8571835]
[1744646341616,7.7899,128.87,128.83,30.8571835]
[1744646341826,0.03,128.87,128.83,30.8571835]
[1744646342326,30.8571835,128.86,128.81,30.99934507]
[1744646342624,30.8571835,128.86,128.81,30.8571835]
[1744646342798,30.8571835,128.85,128.8,30.8571835]
[1744646343200,30.8571835,128.84,128.77,18.79181043]
[1744646343406,113.7571835,128.85,128.8,30.8571835]
[1744646343606,90.6615,128.85,128.81,30.8571835]
[1744646343827,82.9,128.85,128.8,0.14216157]
[1744646344019,82.9,128.85,128.81,30.8571835]
[1744646344405,90.6611,128.85,128.81,30.8571835]
[1744646344635,82.9,128.85,128.81,30.8571835]
[1744646345127,90.6611,128.85,128.81,30.8571835]
[1744646345495,30.8571835,128.84,128.79,30.8571835]
[1744646345706,7.7621,128.83,128.79,30.8571835]
[1744646345902,7.7618,128.84,128.81,30.8571835]
[1744646346125,90.6612,128.85,128.81,30.8571835]
[1744646347009,121.5183835,128.85,128.8,30.8571835]
[1744646348101,30.8571835,128.83,128.76,0.14216157]
[1744646348323,30.8571835,128.82,128.77,30.8571835]
[1744646348502,82.93,128.87,128.81,30.8571835]
[1744646348703,90.6901,128.87,128.8,0.14216157]
[1744646348918,30.8571835,128.86,128.79,26.14216157]
[1744646349147,38.6204835,128.81,128.76,30.8571835]
[1744646349422,30.8571835,128.79,128.74,60.8571835]
[1744646350027,113.7571835,128.8,128.75,30.8571835]
[1744646350210,30.8571835,128.79,128.74,68.6245835]
[1744646351032,113.7571835,128.8,128.75,30.8571835]
[1744646351211,38.6216835,128.79,128.74,68.6245835]
[1744646352023,38.6216835,128.79,128.74,38.6245835]
[1744646352209,82.9,128.8,128.76,30.8571835]
[1744646352534,82.9,128.8,128.78,30.8571835]
[1744646352898,82.9,128.84,128.79,30.8571835]
[1744646353121,82.9,128.84,128.82,30.8571835]
[1744646353529,121.5470835,128.87,128.83,30.8571835]
[1744646353908,121.5470835,128.87,128.82,30.8571835]
[1744646354145,30.8571835,128.86,128.81,30.8571835]
[1744646354430,30.8571835,128.83,128.78,30.8571835]
[1744646354603,30.8571835,128.8,128.76,41.6171835]
[1744646354806,30.8571835,128.8,128.75,30.8571835]
[1744646355209,38.6215835,128.8,128.75,30.8571835]
[1744646355401,30.8571835,128.78,128.74,30.8571835]
[1744646355602,30.8571835,128.78,128.73,30.8571835]
[1744646355806,113.7571835,128.79,128.74,30.8571835]
[1744646356310,30.8571835,128.75,128.7,0.063]
[1744646356523,30.8571835,128.73,128.7,0.063]
[1744646356825,82.9,128.75,128.7,38.6900835]
[1744646357329,121.5246835,128.75,128.7,38.6900835]
[1744646358235,121.5246835,128.75,128.7,0.063]
[1744646358421,121.5246835,128.75,128.7,30.9201835]
[1744646358932,113.7571835,128.75,128.7,30.9201835]
[1744646359734,121.5240835,128.75,128.7,30.9201835]
[1744646359910,113.7571835,128.75,128.7,30.9201835]
[1744646360113,82.9,128.75,128.72,30.8571835]
[1744646360322,82.9,128.75,128.72,38.6258835]
[1744646360910,82.9,128.75,128.74,30.8571835]
[1744646361102,90.6649,128.79,128.74,30.8571835]
[1744646361306,82.9,128.79,128.77,30.8571835]
[1744646361506,41.6171835,128.82,128.78,30.8571835]
[1744646361708,90.6622,128.83,128.79,30.8571835]
[1744646362113,82.9,128.83,128.8,30.8571835]
[1744646362632,90.6621,128.83,128.8,30.8571835]
[1744646362826,82.9,128.83,128.8,30.8571835]
[1744646363128,30.8571835,128.82,128.75,26.0]
[1744646363343,30.8571835,128.82,128.77,30.8571835]
[1744646364212,30.8571835,128.79,128.74,30.8571835]
[1744646364428,38.6221835,128.79,128.74,38.6245835]
[1744646364732,30.8571835,128.77,128.72,41.6171835]
[1744646365106,30.8571835,128.76,128.71,30.8571835]
[1744646365311,82.9,128.78,128.71,30.8571835]
[1744646365312,82.9,128.77,128.73,30.8571835]
[1744646365719,30.8571835,128.75,128.7,7.8327]
[1744646365921,30.8571835,128.75,128.7,30.9201835]
[1744646366552,7.7675,128.74,128.7,30.9201835]
[1744646367148,38.6246835,128.74,128.7,0.063]
[1744646367348,30.8571835,128.73,128.7,0.063]
[1744646367648,38.6246835,128.74,128.7,0.063]
[1744646367951,30.8571835,128.73,128.7,0.063]
[1744646368330,82.9,128.73,128.7,0.063]
[1744646368529,121.5255835,128.73,128.7,0.063]
[1744646368846,30.8571835,128.72,128.7,0.063]
[1744646369546,30.8571835,128.71,128.7,0.063]
[1744646370544,96.65042371,128.71,128.7,0.063]
[1744646370726,96.65042371,128.71,128.7,0.0001]
[1744646373144,65.79324021,128.71,128.7,0.0001]
[1744646373953,0.28432314,128.7,128.64,0.063]
[1744646374249,30.8571835,128.67,128.64,0.063]
[1744646374454,30.99934507,128.65,128.64,0.063]
[1744646375148,38.77234507,128.65,128.64,0.063]
[1744646376155,7.91516157,128.65,128.64,0.063]
[1744646376449,30.8571835,128.65,128.64,0.063]
[1744646378255,38.6301835,128.65,128.64,0.063]
[1744646378958,38.77234507,128.65,128.64,0.063]
[1744646379454,57.42199393,128.65,128.64,0.063]
[1744646379839,38.77234507,128.65,128.64,0.063]
[1744646381266,0.14216157,128.65,128.64,0.063]
[1744646381564,30.99934507,128.65,128.64,0.063]
[1744646382462,38.77234507,128.65,128.64,0.063]
[1744646382851,30.8571835,128.66,128.64,0.063]
[1744646383057,30.8571835,128.67,128.64,0.063]
[1744646383364,0.816128,128.7,128.64,30.9201835]
[1744646383659,30.8571835,128.69,128.64,30.9201835]
[1744646384039,30.8571835,128.68,128.64,30.9201835]
[1744646384364,30.8571835,128.69,128.64,30.9201835]
[1744646384540,30.8571835,128.66,128.64,0.063]
[1744646385346,82.9,128.68,128.64,0.063]
[1744646385546,30.8571835,128.67,128.64,0.063]
[1744646385761,30.8571835,128.66,128.64,0.063]
[1744646386066,30.8571835,128.67,128.64,0.063]
[1744646386252,30.8571835,128.66,128.64,0.063]
[1744646386455,38.6289835,128.67,128.64,0.063]
[1744646386649,30.8571835,128.66,128.64,0.063]
[1744646386840,0.816128,128.7,128.65,30.8571835]
[1744646387040,0.816128,128.7,128.69,30.8571835]
[1744646387554,0.816128,128.7,128.68,30.8571835]
[1744646387758,0.816128,128.7,128.67,30.8571835]
[1744646388439,39.4433115,128.7,128.65,30.8571835]
[1744646388863,113.7571835,128.69,128.64,30.9201835]
[1744646389080,30.8571835,128.67,128.64,0.063]
[1744646389244,30.8571835,128.66,128.64,0.063]
[1744646389866,30.8571835,128.67,128.64,0.063]
[1744646390069,82.9,128.68,128.64,0.063]
[1744646390070,113.7571835,128.68,128.64,0.063]
[1744646390261,8.586128,128.7,128.65,30.8571835]
[1744646390566,8.586128,128.7,128.64,0.063]
[1744646390567,39.4433115,128.7,128.64,0.063]
[1744646390755,30.8571835,128.67,128.64,0.063]
[1744646391690,30.8571835,128.68,128.64,0.063]
[1744646391876,82.9,128.69,128.65,30.8571835]
[1744646392172,82.9,128.69,128.66,30.8571835]
[1744646392851,82.9,128.69,128.66,38.6294835]
[1744646394172,121.5279835,128.69,128.64,0.063]
[1744646394466,39.4435115,128.7,128.64,7.8364]
[1744646394661,0.816128,128.7,128.66,30.8571835]
[1744646394862,0.816128,128.7,128.67,30.8571835]
[1744646396569,0.816128,128.7,128.68,30.8571835]
[1744646396753,0.816128,128.7,128.69,38.6277835]
[1744646398374,0.816128,128.7,128.68,38.6280835]
[1744646398675,0.816128,128.7,128.69,30.8571835]
[1744646398872,0.816128,128.7,128.69,57.84607864]
[1744646399073,0.816128,128.7,128.69,45.76022978]
[1744646399375,0.816128,128.7,128.69,30.8571835]
[1744646399576,0.816128,128.7,128.67,49.3486835]
[1744646399782,0.816128,128.7,128.67,18.4915]
[1744646400096,0.816128,128.7,128.67,49.3486835]
[1744646400260,0.816128,128.7,128.68,30.99934507]
[1744646400669,0.816128,128.7,128.69,56.8571835]
[1744646400969,0.816128,128.7,128.69,26.0]
[1744646401178,0.816128,128.7,128.69,30.8571835]
[1744646401881,0.816128,128.7,128.69,38.6277835]
[1744646402080,0.816128,128.7,128.69,7.7706]
[1744646402270,0.816128,128.7,128.68,0.56864628]
[1744646402581,0.816128,128.7,128.69,30.8571835]
[1744646402980,0.816128,128.7,128.69,38.6277835]
[1744646403366,0.816128,128.7,128.68,0.56864628]
[1744646403367,0.816128,128.7,128.68,8.33954628]
[1744646403674,31.6733115,128.7,128.68,0.14216157]
[1744646403865,0.816128,128.7,128.68,0.14216157]
[1744646404184,0.816128,128.7,128.69,30.8571835]
[1744646404684,0.816128,128.7,128.68,38.77044507]
[1744646404872,0.816128,128.7,128.68,7.91326157]
[1744646405077,0.816128,128.7,128.66,26.0]
[1744646405280,0.816128,128.7,128.65,7.773]
[1744646405579,0.816128,128.7,128.69,26.0]
[1744646405773,0.816128,128.7,128.69,56.8571835]
[1744646406081,0.816128,128.7,128.69,113.19202371]
[1744646406261,0.03,128.76,128.71,0.14216157]
[1744646406460,0.03,128.76,128.75,31.14150664]
[1744646406766,0.03,128.76,128.75,50.07547864]
[1744646406978,0.03,128.76,128.75,57.84237864]
[1744646407177,0.03,128.76,128.73,0.14216157]
[1744646407381,0.03,128.76,128.74,30.8571835]
[1744646407571,0.03,128.76,128.75,50.07547864]
[1744646407762,0.03,128.76,128.75,81.07482371]
[1744646408090,0.03,128.76,128.75,2.21224628]
[1744646408391,0.03,128.76,128.72,10.68]
[1744646408566,0.03,128.76,128.73,30.8571835]
[1744646408765,0.03,128.76,128.72,41.5371835]
[1744646408966,7.7969,128.76,128.71,30.8571835]
[1744646409166,30.8571835,128.75,128.7,30.8571835]
[1744646409680,0.03,128.76,128.73,30.0]
[1744646409972,30.8571835,128.75,128.73,30.0]
[1744646410175,7.7965,128.76,128.73,30.0]
[1744646410587,0.03,128.76,128.72,30.8571835]
[1744646410770,0.03,128.76,128.75,30.8571835]
[1744646410971,0.03,128.76,128.73,38.6251835]
[1744646411382,0.03,128.76,128.75,30.8571835]
[1744646411985,0.03,128.76,128.74,30.8571835]
[1744646412185,30.8871835,128.76,128.68,1.5634]
[1744646412392,30.8571835,128.73,128.68,7.7712]
[1744646412692,30.8571835,128.72,128.67,49.3086835]
[1744646412870,20.42181043,128.75,128.68,30.8571835]
[1744646413069,0.03,128.76,128.73,30.8571835]
[1744646413375,0.03,128.76,128.75,30.8571835]
[1744646413581,0.03,128.76,128.75,80.93266214]
[1744646413986,0.03,128.76,128.75,30.8571835]
[1744646414801,30.8871835,128.76,128.71,30.8571835]
[1744646414969,30.8571835,128.75,128.72,14.74]
[1744646415169,30.8571835,128.73,128.72,14.74]
[1744646415364,30.8571835,128.73,128.67,10.68]
[1744646415671,30.8571835,128.73,128.68,30.8571835]
[1744646415871,30.8571835,128.73,128.69,30.0]
[1744646416067,30.8571835,128.72,128.69,30.0]
[1744646416700,30.8571835,128.71,128.69,30.0]
[1744646416868,0.14216157,128.74,128.69,30.0]
[1744646417075,38.76734507,128.74,128.69,60.8571835]
[1744646417402,30.8571835,128.73,128.69,30.0]
[1744646417579,30.8571835,128.72,128.67,30.8571835]
[1744646417769,30.8571835,128.69,128.68,30.0]
[1744646417971,30.99934507,128.69,128.68,30.0]
[1744646418177,50.21764021,128.69,128.68,30.0]
[1744646418981,57.98824021,128.69,128.68,30.0]
[1744646419301,0.14216157,128.67,128.64,0.063]
[1744646419988,30.99934507,128.65,128.64,0.063]
[1744646420304,88.70292371,128.65,128.64,0.0001]
[1744646420503,0.71080785,128.64,128.63,0.063]
[1744646420682,62.42517485,128.64,128.63,0.063]
[1744646421072,7.91576157,128.64,128.63,0.063]
[1744646421279,57.42259393,128.64,128.63,0.063]
[1744646421497,7.91576157,128.64,128.63,0.063]
[1744646422199,7.7736,128.64,128.63,0.063]
[1744646422497,30.8571835,128.66,128.63,0.063]
[1744646422686,30.99934507,128.65,128.63,0.063]
[1744646423076,7.7725,128.66,128.63,0.063]
[1744646423497,38.6296835,128.66,128.63,0.063]
[1744646424289,7.7725,128.66,128.63,0.063]
[1744646424491,38.6296835,128.66,128.63,0.063]
[1744646424688,30.99934507,128.65,128.63,0.063]
[1744646424889,49.64899393,128.64,128.63,0.063]
[1744646425902,0.14216157,128.64,128.63,0.063]
[1744646426076,30.99934507,128.64,128.63,0.063]
[1744646426590,38.77294507,128.64,128.63,0.063]
[1744646427318,57.42259393,128.64,128.63,0.063]
[1744646429225,57.99124021,128.64,128.63,0.063]
[1744646429406,88.84842371,128.64,128.63,0.063]
[1744646429701,57.42259393,128.64,128.63,0.063]
[1744646429901,30.99934507,128.64,128.63,0.063]
[1744646430091,10.80216157,128.67,128.63,30.9201835]
[1744646430293,41.65934507,128.67,128.63,0.063]
[1744646430607,30.99934507,128.67,128.63,0.063]
[1744646430800,30.8571835,128.66,128.63,0.063]
[1744646431007,30.8571835,128.64,128.63,0.063]
[1744646431592,30.8571835,128.65,128.63,0.063]
[1744646431788,38.6302835,128.65,128.63,0.063]
[1744646432214,7.7731,128.65,128.63,0.063]
[1744646432508,30.8571835,128.65,128.63,0.063]
[1744646432709,38.6297835,128.66,128.63,0.063]
[1744646432894,7.7726,128.66,128.63,30.9201835]
[1744646433094,38.6297835,128.66,128.63,0.063]
[1744646433301,7.7726,128.66,128.63,0.063]
[1744646434416,0.14216157,128.71,128.65,30.8571835]
[1744646434602,0.14216157,128.72,128.68,30.8571835]
[1744646435003,30.99934507,128.72,128.68,30.8571835]
[1744646435204,30.99934507,128.72,128.67,30.8571835]
[1744646435530,30.8571835,128.69,128.64,30.8571835]
[1744646435700,30.8571835,128.66,128.63,0.063]
[1744646436198,30.8571835,128.69,128.64,30.8571835]
[1744646436389,0.14216157,128.7,128.65,38.6300835]
[1744646436390,57.41949393,128.7,128.65,38.6300835]
[1744646436911,18.64964886,128.74,128.69,30.8571835]
[1744646437118,0.03,128.72,128.69,30.8571835]
[1744646437610,0.03,128.72,128.71,30.8571835]
[1744646438118,0.03,128.72,128.71,31.42582978]
[1744646438308,0.03,128.72,128.71,50.07547864]
[1744646438515,0.03,128.76,128.75,38.6240835]
[1744646438713,0.03,128.76,128.75,69.481267]
[1744646439319,0.0001,128.76,128.75,88.84172371]
[1744646439505,0.03,128.79,128.78,44.64964886]
[1744646439709,0.0001,128.79,128.78,75.50683236]
[1744646440126,0.03,128.82,128.81,80.93266214]
[1744646440296,0.03,128.82,128.81,31.42582978]
[1744646440704,0.03,128.82,128.8,26.0]
[1744646440908,0.03,128.82,128.81,30.8571835]
[1744646441512,0.03,128.82,128.78,30.8571835]
[1744646441722,30.8571835,128.8,128.75,30.8571835]
[1744646441906,30.8571835,128.79,128.73,0.14216157]
[1744646442101,30.8571835,128.8,128.76,30.8571835]
[1744646442508,30.8571835,128.78,128.73,30.8571835]
[1744646442702,30.99934507,128.79,128.74,30.8571835]
[1744646443210,46.81269089,128.78,128.73,46.81269089]
[1744646443497,0.14216157,128.79,128.75,46.81269089]
[1744646443699,46.84269089,128.82,128.77,46.81269089]
[1744646443912,26.03,128.82,128.77,46.81269089]
[1744646444117,26.03,128.82,128.78,46.81269089]
[1744646444321,80.60549089,128.82,128.78,46.81269089]
[1744646444519,7.7639,128.8,128.76,46.81269089]
[1744646444825,0.03,128.82,128.78,46.81269089]
[1744646445612,54.60539089,128.82,128.77,46.81269089]
[1744646445926,46.81269089,128.8,128.75,46.81269089]
[1744646446125,0.14216157,128.81,128.76,46.81269089]
[1744646446126,46.95485246,128.81,128.76,46.81269089]
[1744646446509,54.71875246,128.81,128.76,46.81269089]
[1744646446709,46.81269089,128.8,128.76,46.81269089]
[1744646447017,54.71875246,128.81,128.73,0.56864628]
[1744646447215,54.71875246,128.81,128.76,46.81269089]
[1744646448923,46.81269089,128.77,128.72,10.64]
[1744646449129,0.14216157,128.78,128.7,46.81269089]
[1744646449130,46.81269089,128.74,128.7,46.81269089]
[1744646449431,46.81269089,128.73,128.69,46.81269089]
[1744646449839,46.81269089,128.74,128.7,46.81269089]
[1744646450318,46.81269089,128.74,128.69,46.81269089]
[1744646450724,54.58029089,128.74,128.68,7.7712]
[1744646450931,54.57989089,128.75,128.7,46.81269089]
[1744646451433,46.81269089,128.75,128.71,46.81269089]
[1744646451757,19.4101,128.8,128.74,46.81269089]
[1744646452042,0.03,128.82,128.79,46.81269089]
[1744646452232,0.03,128.82,128.81,46.81269089]
[1744646452618,0.03,128.82,128.81,47.09701403]
[1744646452834,0.03,128.82,128.81,101.95732806]
[1744646453030,0.03,128.82,128.81,55.14463717]
[1744646453531,0.03,128.82,128.81,120.74913849]
[1744646453737,0.0001,128.82,128.81,120.74913849]
[1744646454228,0.0001,128.82,128.81,7.7633]
[1744646454425,0.0001,128.82,128.81,54.57599089]
[1744646455131,0.0001,128.82,128.81,46.81269089]
[1744646455305,0.0001,128.82,128.8,46.81269089]
[1744646455515,0.0001,128.82,128.79,10.62]
[1744646455713,0.0001,128.82,128.8,46.81269089]
[1744646456438,0.0001,128.82,128.79,57.43269089]
[1744646456736,0.0001,128.82,128.8,46.81269089]
[1744646456941,0.0001,128.82,128.81,46.81269089]
[1744646457639,0.0001,128.82,128.81,47.38133717]
[1744646457816,0.0001,128.82,128.81,94.19402806]
[1744646458020,0.0001,128.82,128.81,47.38133717]
[1744646458229,0.0001,128.82,128.81,46.81269089]
[1744646459264,0.0001,128.82,128.79,57.43269089]
[1744646459426,0.0001,128.82,128.81,46.81269089]
[1744646459833,0.0001,128.82,128.81,94.19402806]
[1744646460531,0.0101,128.83,128.82,0.56864628]
[1744646460726,0.0101,128.83,128.82,94.19402806]
[1744646461344,0.03,128.87,128.86,26.0]
[1744646461643,0.03,128.91,128.9,26.28432314]
[1744646461939,0.03,128.91,128.9,73.38133717]
[1744646462325,0.03,128.91,128.87,26.0]
[1744646462544,0.03,128.91,128.9,46.81269089]
[1744646463432,0.03,128.91,128.87,46.81269089]
[1744646463630,0.03,128.91,128.88,46.81269089]
[1744646464041,46.81269089,128.9,128.86,10.62]
[1744646464222,46.81269089,128.9,128.83,0.14216157]
[1744646464537,0.17216157,128.91,128.86,46.81269089]
[1744646464736,46.98485246,128.91,128.86,46.81269089]
[1744646464939,54.57149089,128.89,128.85,46.81269089]
[1744646465140,0.17216157,128.91,128.86,46.81269089]
[1744646465141,82.9,128.9,128.86,46.81269089]
[1744646465339,129.71269089,128.9,128.85,46.81269089]
[1744646465654,82.9,128.9,128.87,46.81269089]
[1744646466038,82.9,128.9,128.86,46.81269089]
[1744646466346,82.9,128.9,128.85,46.81269089]
[1744646466347,136.69494089,128.9,128.85,46.81269089]
[1744646466551,46.81269089,128.88,128.83,46.81269089]
[1744646466738,46.81269089,128.87,128.83,46.81269089]